Cogmind - Beta 13 @@@ ROGUE MODE // 2024.03.31 @ 21:07:08 Player: prestanton Result: Destroyed by S-10 Pest with Light Assault Rifle Performance ------------- Evolutions (1) 500 Regions Visited (5) 1000 Robots Destroyed (19) 95 Value Destroyed (392) 392 Prototype IDs (1) 20 Alien Tech Used (0) 0 Bonus (300) 300 TOTAL SCORE: 2307 Bonus ------- Aligned with FarCom 300 Cogmind --------- Core Integrity 0/400 Matter 254/300 Energy 100/100 System Corruption 0% Temperature Cool (0) Movement Core (50) Location -8/Mines Parts ------- > --- POWER (1) -------- (None) > --- PROPULSION (4) --- (None) > --- UTILITY (2) ------ (None) > --- WEAPON (2) ------- (None) > --- INVENTORY (5) ---- (None) Peak State ------------ > --- POWER ------------ Light Ion Engine > --- PROPULSION ------- Aluminum Leg Aluminum Leg > --- UTILITY ---------- Small Storage Unit Supersonic Drone Bay > --- WEAPON ----------- Small Laser Assault Rifle > --- INVENTORY -------- Army-in-a-Box [Rating: 19] Favorites ----------- Power Ion Engine Engine Ion Engine Propulsion Aluminum Leg Leg Aluminum Leg Utility Small Storage Unit Device Supersonic Drone Bay Storage Small Storage Unit Processor Visual Processing Unit Weapon Assault Rifle Energy Gun Small Laser Ballistic Gun Assault Rifle Launcher Grenade Launcher Build | -11 -10 -9 -9 -9 -8 ------- Run | Yrd Mat Mat Min Exi Min Slots Evolved 2 | . . 2 . . . Power . | . . . . . . Propulsion 2 | . . 2 . . . Utility . | . . . . . . Weapon . | . . . . . . Parts Attached 23 | 7 4 6 . 4 2 Power 4 | 1 . 1 . 1 1 Engine 4 | 1 . 1 . 1 1 Core . | . . . . . . Reactor . | . . . . . . Propulsion 3 | 2 . 1 . . . Treads . | . . . . . . Leg 3 | 2 . 1 . . . Wheel . | . . . . . . Hover . | . . . . . . Flight . | . . . . . . Utility 7 | 1 1 1 . 3 1 Device 2 | . . . . 1 1 Storage 4 | 1 1 . . 2 . Processor 1 | . . 1 . . . Hackware . | . . . . . . Protection . | . . . . . . Artifact . | . . . . . . Weapon 9 | 3 3 3 . . . Energy Gun 4 | 2 1 1 . . . Energy Cannon . | . . . . . . Ballistic Gun 2 | 1 . 1 . . . Ballistic Cannon . | . . . . . . Launcher 3 | . 2 1 . . . Special Weapon . | . . . . . . Impact Weapon . | . . . . . . Slashing Weapon . | . . . . . . Piercing Weapon . | . . . . . . Special Melee Weapon . | . . . . . . Unidentified Prototypes 1 | . . . . 1 . Parts Lost 9 | . . 1 1 . 7 Power 2 | . . . . . 2 Propulsion 3 | . . . 1 . 2 Utility 1 | . . . . . 1 Weapon 3 | . . 1 . . 2 Highest Loss Streak 3 | . . 1 1 . 3 To Critical Strikes . | . . . . . . Average Slot Usage (%) 68 | . 94 88 78 71 35 Engine 10 | . 14 11 11 11 5 Leg 21 | . 28 33 23 22 10 Device 2 | . . . . 3 5 Storage 11 | . 22 14 11 11 5 Processor 2 | . . 7 11 1 . Energy Gun 8 | . 3 11 11 11 4 Ballistic Gun 9 | . 14 11 11 11 4 Launcher 1 | . 10 . . . . Naked Turns 10 | . . . . . 10 Heaviest Build 208 | 13 17 15 11 208 208 Greatest Support 30 | 20 20 30 20 20 20 Greatest Overweight (x) 20 | . . . . 10 20 Average Overweight (x) . | . . . . 1 . Largest Inventory Capacity 35 | 8 8 8 8 35 35 Average Capacity 17 | 6 8 8 8 20 20 Most Carried 10 | 3 4 4 3 10 10 Average Carried 5 | 1 3 2 3 7 4 Final Capacity 35 | 8 8 8 8 35 5 Final Carried 10 | 2 4 3 3 10 . Class Distribution -------------------- 65% | Mutant 34% | Hauler-Mutant Dominant Class ---------------- Mutant | -10/Materials Mutant | -9/Materials Mutant | -9/Mines Mutant | -9/Exiles Mutant | -8/Mines Resources | -11 -10 -9 -9 -9 -8 ----------- Run | Yrd Mat Mat Min Exi Min Matter Collected 548 | 80 197 271 . . . Remotely . | . . . . . . Salvage Created 551 | . 217 334 . . . Parts 32 | . 12 20 . . . Haulers Intercepted . | . . . . . . Recyclers Shooed 1 | . . 1 . . . Parts Field Recycled . | . . . . . . Retrieved Matter . | . . . . . . Parts Self-Destructed . | . . . . . . Prevented . | . . . . . . Kills | -11 -10 -9 -9 -9 -8 ------- Run | Yrd Mat Mat Min Exi Min Combat Hostiles Destroyed 12 | . 7 5 . . . Guns 7 | . 2 5 . . . AOE 5 | . 5 . . . . Classes Destroyed 7 | . 4 3 . . . Worker 1 | . 1 . . . . Builder 1 | . 1 . . . . Recycler 3 | . . 3 . . . Watcher 2 | . 1 1 . . . Swarmer 4 | . . 4 . . . Grunt 7 | . 7 . . . . Sentry 1 | . . 1 . . . Best Kill Streak 5 | . 5 5 . . . Combat Bots Only 4 | . 4 3 . . . Max Kills in Single Turn 3 | . 3 2 . . . Gunslinging 1 | . . 1 . . . Exploded 2 | . 2 . . . . Melee . | . . . . . . Uniques/NPCs Destroyed . | . . . . . . Combat | -11 -10 -9 -9 -9 -8 -------- Run | Yrd Mat Mat Min Exi Min Hostile Shots Fired 171 | . 23 34 6 . 108 Missed 55 | . 8 11 2 . 34 Damage Taken 1398 | . 248 197 33 . 920 Core 439 | . 32 65 . . 342 Absorbed by Shields . | . . . . . . Core Remaining (%) 93 | 100 87 . . . . Volleys Fired 41 | . 17 16 3 . 5 Largest 2 | . 2 2 2 . 2 Hottest 60 | . 60 60 60 . 60 Shots Fired 62 | . 19 28 6 . 9 Gun 50 | . 7 28 6 . 9 Cannon . | . . . . . . Launcher 12 | . 12 . . . . Special . | . . . . . . Kinetic 29 | . 5 16 3 . 5 Thermal 21 | . 2 12 3 . 4 Explosive 12 | . 12 . . . . Electromagnetic . | . . . . . . Robot Hit Streak 5 | . 4 5 1 . 5 Robot Miss Streak 4 | . 2 1 4 . 2 Penetration Max . | . . . . . . Secondary Targets 1 | . . 1 . . . Max Gunslinging Chain 1 | . . 1 . . . Shots Hit Robots 34 | . 9 19 1 . 5 Core Hits 31 | . 19 12 . . . Critical Kills . | . . . . . . Critical Parts Destroyed . | . . . . . . Critical Strikes . | . . . . . . Melee Attacks . | . . . . . . Impact . | . . . . . . Slashing . | . . . . . . Piercing . | . . . . . . Sneak Attacks . | . . . . . . Combat Hostiles . | . . . . . . Follow-up Attacks . | . . . . . . Damage Inflicted 1041 | . 718 263 11 . 49 Guns 379 | . 56 263 11 . 49 Cannons . | . . . . . . Explosions 662 | . 662 . . . . Melee . | . . . . . . Ramming . | . . . . . . Kinetic 199 | . 33 151 . . 15 Thermal 180 | . 23 112 11 . 34 Explosive 662 | . 662 . . . . Electromagnetic . | . . . . . . Impact . | . . . . . . Slashing . | . . . . . . Piercing . | . . . . . . Highest Corruption . | . . . . . . Average Corruption . | . . . . . . Corruption Purged . | . . . . . . Corruption Blocked . | . . . . . . Overload Shots . | . . . . . . Overflow Damage . | . . . . . . Projectiles . | . . . . . . Explosions . | . . . . . . Melee . | . . . . . . Knockbacks . | . . . . . . Impact . | . . . . . . Kinetic . | . . . . . . Secondary . | . . . . . . Self-Inflicted Damage 63 | . 63 . . . . Shots 2 | . 2 . . . . Rammed . | . . . . . . Targets Rammed . | . . . . . . Kicked . | . . . . . . Crushed . | . . . . . . Highest Temperature 12 | . 12 . . . . Average Temperature 6 | . 6 . . . . Received Heat Transfer 105 | . 105 . . . . Siege Activations . | . . . . . . Robots Corrupted . | . . . . . . Combat Hostiles . | . . . . . . Parts Fried . | . . . . . . Impact Corruptions . | . . . . . . Robots Melted . | . . . . . . Combat Hostiles . | . . . . . . Parts Melted . | . . . . . . Heat Transferred 400 | . 50 250 25 . 75 Parts Sabotaged . | . . . . . . Parts Stolen . | . . . . . . Parts Stripped . | . . . . . . Power Chain Reactions . | . . . . . . Alert | -11 -10 -9 -9 -9 -8 ------- Run | Yrd Mat Mat Min Exi Min Peak Influence 282 | . 282 270 110 . 75 Initial 118 | . . 118 105 . . Average 78 | . 94 210 108 . 5 Maximum Alert Level 1 | . 1 1 . . . Low Security (%) 82 | 100 74 46 100 . 100 Level 1 17 | . 25 53 . . . Level 2 . | . . . . . . Level 3 . | . . . . . . Level 4 . | . . . . . . Level 5 . | . . . . . . High Security . | . . . . . . Max Security . | . . . . . . Squads Dispatched 3 | . 2 1 . . . Investigation 1 | . 1 . . . . Extermination . | . . . . . . Reinforcement 2 | . 1 1 . . . Assault . | . . . . . . Garrison . | . . . . . . Intercept . | . . . . . . Searches Triggered . | . . . . . . Construction Impeded . | . . . . . . Haulers Reinforced . | . . . . . . Active Scanning Responses . | . . . . . . Cargo Convoy Interrupts . | . . . . . . Stealth | -11 -10 -9 -9 -9 -8 --------- Run | Yrd Mat Mat Min Exi Min Distress Signals 1 | . 1 . . . . Communications Jammed . | . . . . . . Distress Signals . | . . . . . . Times Spotted 31 | . 8 9 3 . 11 Peak Tracking Total 5 | . 4 5 2 . 5 Tactical Retreats 6 | . . 1 1 . 4 Traps | -11 -10 -9 -9 -9 -8 ------- Run | Yrd Mat Mat Min Exi Min Traps Triggered . | . . . . . . Indirectly . | . . . . . . Trap Hack Attempts . | . . . . . . Triggered . | . . . . . . Disarmed . | . . . . . . Reprogrammed . | . . . . . . Reused . | . . . . . . Traps Extracted . | . . . . . . Installed . | . . . . . . Triggered . | . . . . . . Machines | -11 -10 -9 -9 -9 -8 ---------- Run | Yrd Mat Mat Min Exi Min Machines Disabled . | . . . . . . Max in Single Turn . | . . . . . . Machines Repaired . | . . . . . . Machines Dismantled . | . . . . . . Machines Sabotaged . | . . . . . . Overloaded Fab Kills . | . . . . . . Hacking | -11 -10 -9 -9 -9 -8 --------- Run | Yrd Mat Mat Min Exi Min Machines Accessed 2 | . 2 . . . . Terminals 2 | . 2 . . . . Fabricators . | . . . . . . Repair Stations . | . . . . . . Recycling Units . | . . . . . . Scanalyzers . | . . . . . . Garrison Access . | . . . . . . Total Hacks 5 | . 5 . . . . Successful 3 | . 3 . . . . Failed 2 | . 2 . . . . Catastrophic 1 | . 1 . . . . Database Lockouts . | . . . . . . Manual 5 | . . . . 5 . Terminals 5 | . 5 . . . . Fabricators . | . . . . . . Repair Stations . | . . . . . . Recycling Units . | . . . . . . Scanalyzers . | . . . . . . Garrison Access . | . . . . . . Terminal Hacks 3 | . 3 . . . . Record 2 | . 2 . . . . Zone Layout 1 | . 1 . . . . Fabricator Hacks . | . . . . . . Repair Station Hacks . | . . . . . . Recycling Unit Hacks . | . . . . . . Scanalyzer . | . . . . . . Garrison Access Hacks . | . . . . . . Unauthorized Hacks . | . . . . . . Terminals . | . . . . . . Fabricators . | . . . . . . Repair Stations . | . . . . . . Recycling Units . | . . . . . . Scanalyzers . | . . . . . . Garrison Access . | . . . . . . Data Cores Recovered . | . . . . . . Used . | . . . . . . Hacking Detections 2 | . 2 . . . . Full Trace Events 1 | . 1 . . . . Feedback Events . | . . . . . . Feedback Blocked . | . . . . . . Robot Schematics Acquired . | . . . . . . Robots Built . | . . . . . . Authchips . | . . . . . . Time . | . . . . . . Total Robot Build Rating . | . . . . . . Part Schematics Acquired . | . . . . . . Parts Built . | . . . . . . Authchips . | . . . . . . Time . | . . . . . . Total Part Build Rating . | . . . . . . Parts Repaired . | . . . . . . Time . | . . . . . . Parts Recycled . | . . . . . . Recycled Matter . | . . . . . . Retrieved Matter . | . . . . . . Retrieved Components . | . . . . . . Parts Scanalyzed . | . . . . . . Part Schematics Acquired . | . . . . . . Parts Damaged . | . . . . . . Bothacking | -11 -10 -9 -9 -9 -8 ------------ Run | Yrd Mat Mat Min Exi Min Used RIF Installer . | . . . . . . Robots Hacked . | . . . . . . Non-combat . | . . . . . . Combat . | . . . . . . Robot Hacks Applied . | . . . . . . Relay Couplers Released . | . . . . . . Fabnet Peak Effective % . | . . . . . . Robots Rewired . | . . . . . . Allies Hacked . | . . . . . . Hacks Repelled . | . . . . . . Allies | -11 -10 -9 -9 -9 -8 -------- Run | Yrd Mat Mat Min Exi Min Total Allies . | . . . . . . Largest Group . | . . . . . . Highest-Rated Group . | . . . . . . Highest-Rated Ally . | . . . . . . Total Orders . | . . . . . . Ally Attacks . | . . . . . . Total Damage . | . . . . . . Kills . | . . . . . . Allies Corrupted . | . . . . . . Allies Melted . | . . . . . . Intel | -11 -10 -9 -9 -9 -8 ------- Run | Yrd Mat Mat Min Exi Min Robot Analysis Total . | . . . . . . Derelict Logs Recovered . | . . . . . . Drone Launches 1 | . . . . 1 . Drone Recoveries . | . . . . . . Exploration | -11 -10 -9 -9 -9 -8 ------------- Run | Yrd Mat Mat Min Exi Min Turns Passed 2129 | 63 224 240 86 1070 446 Spaces Moved 1269 | 35 148 111 60 509 406 Core 388 | 5 . . . . 383 Treads . | . . . . . . Legs 881 | 30 148 111 60 509 23 Wheels . | . . . . . . Hover . | . . . . . . Flight . | . . . . . . Fastest Speed 50 | 50 120 120 120 120 50 Average Speed 147 | 110 120 120 120 206 98 Slowest Speed 1520 | 120 120 120 120 820 1520 Overloaded Moves . | . . . . . . Propulsion Burnouts . | . . . . . . Robots Hopped . | . . . . . . Cave-ins Triggered . | . . . . . . Exploration Rate (%) 36 | 4 24 10 25 93 63 Regions Visited 5 Branch Regions 3 Pre-discovered Areas . | . . . . . . Known Exits Taken . | . . . . . . Unknown Exits Taken 5 | 1 1 1 1 1 . Scrap Searched . | . . . . . . Spaces Dug . | . . . . . . Terrain Destroyed 90 | . 90 . . . . Melee . | . . . . . . Projectile . | . . . . . . AOE 90 | . 90 . . . . Terrain Rammed . | . . . . . . Walls Destroyed . | . . . . . . Machines Disabled . | . . . . . . Actions | -11 -10 -9 -9 -9 -8 --------- Run | Yrd Mat Mat Min Exi Min Total 1482 | 60 177 191 68 538 448 Wait 100 | 10 3 53 6 4 24 Move 1264 | 34 147 110 59 508 406 Hop . | . . . . . . Pick Up 31 | 8 3 3 . 13 4 Fast Attach . | . . . . . . Attach 22 | 7 4 5 . 4 2 Detach 6 | 1 3 1 . 1 . Swap 1 | . . 1 . . . Drop 17 | . . 2 . 8 7 Fire 41 | . 17 16 3 . 5 Melee . | . . . . . . Ram . | . . . . . . Kick . | . . . . . . Crush . | . . . . . . Escape Stasis . | . . . . . . Rewire . | . . . . . . Trap . | . . . . . . Miscellaneous . | . . . . . . Route ------- -11/Scrapyard -10/Materials -9/Materials -9/Mines (discovered 2 exits: *Exi / [*Zio]) -9/Exiles (discovered 2 exits: [*Min x2]) -8/Mines History --------- Turn | Location | Event 46 | -11/Scrapyard | Discovered new exit (range 14) 64 | -11/Scrapyard | Entered Materials 208 | -10/Materials | Discovered new exit (range 16) 288 | -10/Materials | Entered another Materials area 288 | -9/Materials | Evolved 2 slots: Propulsion x2 328 | -9/Materials | Build established: Mutant 477 | -9/Materials | Met 8R-AWN 521 | -9/Materials | Discovered new exit (range 6) 528 | -9/Materials | Entered Mines 531 | -9/Mines | Followed 8R-AWN into the Mines 532 | -9/Mines | Met a Derelict bent on vengeance 559 | -9/Mines | A Derelict revealed a hidden shortcut to a safe place 608 | -9/Mines | Discovered new exit (range 5) 614 | -9/Mines | Entered Exiles 630 | -9/Exiles | Discovered new exit (range 17) 646 | -9/Exiles | Welcomed by 8R-AWN 665 | -9/Exiles | Met EX-HEX 737 | -9/Exiles | Met EX-BIN 754 | -9/Exiles | Aligned with FarCom system 755 | -9/Exiles | Given EX-Vault access code 796 | -9/Exiles | Opened EX-Vault 803 | -9/Exiles | Found Prototype Device 808 | -9/Exiles | Found Prototype Device 819 | -9/Exiles | Identified Supersonic Drone Bay 901 | -9/Exiles | Warned to stay clear of 0b10 Research branches 936 | -9/Exiles | Met EX-DEC 992 | -9/Exiles | Visited The Gauntlet 1476 | -9/Exiles | Build established: Hauler-Mutant 1577 | -9/Exiles | Discovered new exit (range 14) 1684 | -9/Exiles | Stole two prototypes: Supersonic Drone Bay, Army-in-a-Box 1684 | -9/Exiles | Entered Mines 1906 | -8/Mines | Lost 3 parts (1n2w) 1957 | -8/Mines | Lost 3 parts (2p1n) 2070 | -8/Mines | Core integrity fell below 50% 2107 | -8/Mines | Core integrity fell below 20% 2130 | -8/Mines | Destroyed by S-10 Pest with Light Assault Rifle Last Messages --------------- 01913_ Dropped Humpback. 01914_ Penetrated by Slug. 01916_ Acquired Lgt. Ion Engine. 01923_ Penetrated by Slug. 01923_ Core Extractor disabled. 01926_ Lgt. Ion Engine destroyed. 01929_ Penetrated by Slug. 01959_ K-01 Serf collects debris. 02013_ Slug penetrates Wall. 02022_ K-01 Serf collects debris. 02025_ Slug penetrates Wall. 02033_ K-01 Serf collects debris. 02100_ Slug penetrates Wall. 02102_ Drone sends a signal. 02104_ H-55 Commando retrieves Drone. 02106_ Penetrated by Slug. 02108_ K-01 Serf collects debris. 02121_ Penetrated by Slug. 02121_ Supersonic Drone Bay destroyed. 02128_ Penetrated by Slug. Map ----- +----------------------------------------------------+ | ##???????????# #?? | | #???????????## #?? | | # #????????????#### #?? | | ##### #???????????????## ##?? | | ????#### #####???????????## #??? | | ???????## ##### ######## #### #??? | | ##??????# #?## ##??? | | #??????# ### ### ######## ####???? | | #??????# ## ##?# #??????# ##??????? | | ##?????# ## """ #??# ######?# #???????? | | ##????# ## """ ##?# #?# #######?? | | ##???# # """ ######## #?## ## #?? | | ##??# # #?????# #??## #?? | | ### #### ## #?????# #???# ##?? | | ??## ## ### #?????# ###### ## #??? | | ???## ##????# ## ## #??? | | ????## #????###### ## #??? | | ????## ## ## #?????????# ## ####??? | | ???## ### ### #?????????# ## #?????? | | ??## """ ### #?## #?????????# #?????? | | ??# """ ## #??# #####????#### #?????? | | ??# """ s## #??## ##??????# ###???? | | ??# """ s #???## ??????## #???? | | ??# ####?????####r ????### #???? | | ??## s #????????????# ##??## #???? | | ???## ##????????????#@#??## ##???? | | ????## #?????????????#s#?## h""" ##????? | | ?????# #?????????????#h### """ ##????? | | ?????# #####?????????# ## "" ##???? | | ?????## #???????### ## ##??? | | ??????### ## #???????# k #??? | | ????????# #?? #???????# ## #??? | | ????????#s#???#???????# #### #### ##??? | | ????????# #?? #?????? #??# #??## ##???? | | ????????# #? #?????#####??# #???## #????? | | #####???# ## #### #???????# #????# #????? | | ##### #???????# #????# #????? | | #??????## ##???# #????? | | ?## ############ ##??# #????? | | ??# ###### #???# #??# #????? | | ??# ##????# #???# #?## ##???? | | ?## ###??? #???# ###### ## ##??? | | ?# ##?? #??## #????## #??? | | ?# ##?# ##?## ##????### #??? | | ?## #??###### #??????## #??? | | ??## #???## #???????# ##??? | | #### ##???# #???????## ##???? | | ##????# ##????????## #????? | | ##????## ##??????????## ##????? | | #### ####### ##????????????####?????? | +----------------------------------------------------+ Best States ------------- Heat Dissipation 28 Energy Generation 10 Energy Capacity 250 Matter Stores 300 Matter Capacity 400 Sight Range 18 Terrain Scan Density 10 Evasion (%) 55 Item Schematics ----------------- None Robot Schematics ------------------ None Fabricated ------------ Nothing Alien Tech Used ----------------- None Achievements -------------- Tank Challenges ------------ None Game ------ Seed SapperMiningUnit Manual? 0 Play Time 00:28:10 Cumulative 2.1 hours Start 2024.03.31 @ 20:39:54 End 2024.03.31 @ 21:07:08 Sessions 1 Manual Loads 0 Difficulty Rogue Special Mode None Game No. 4 Rogue 4 Adventurer 0 Explorer 0 Win Type - Total 0 Types 0/0/0/0/0/0/0/0/0 Lore% 5 Gallery% 6 Achievement% 7 Wizard Run 0 Options --------- Layout 1 ASCII 0 Keyboard 0 Movement Mouse Keybinds 0 Fullscreen 1 Font 32/SmallcapsGlow Map View 50x35 Zoom Use 1% Tactical HUD 1 Map Filters NONE Filters NONE Steam 1 RUN: 29ad1755-aeca-4756-b6af-5d28f9f2464e